[Event "World Junior U20 Open 2018"]
[Site "Gebze"]
[Date "2018.09.08"]
[Round "5.67"]
[White "Taalaibekov, Tagir"]
[Black "Ozsakallioglu, Okan"]
[Result "0-1"]
[ECO "E69"]
[WhiteElo "2291"]
[BlackElo "1955"]
[Annotator "NA"]
[PlyCount "84"]
[EventDate "2018.09.05"]
[EventType "swiss"]
[EventCountry "TUR"]
[SourceTitle "playchess.com"]
[Source "ChessBase"]
[SourceQuality "1"]
[TimeControl "40/5400+30:1800+30"]

1. d4 {[%emt 0:01:30]} Nf6 {[%emt 0:00:30]} 2. Nf3 {[%emt 0:00:30]} g6 {[%emt 0:00:00]} 3. g3 {[%emt 0:00:30]} Bg7 {[%emt 0:00:00]} 4. Bg2 {[%emt 0:00:00]} d6 {[%emt 0:01:30]} 5. O-O {[%emt 0:00:00]} O-O {[%emt 0:00:30]} 6. c4 {[%emt 0:00:30]} Nbd7 {[%emt 0:01:30]} 7. Nc3 {[%emt 0:00:00]} c6 {[%emt 0:00:00]} 8. e4 {[%emt 0:00:00]} e5 {[%emt 0:00:00]} 9. h3 {[%emt 0:00:30]} Re8 {[%emt 0:00:30]} 10. Be3 {[%emt 0:00:30]} exd4 {[%emt 0:00:30]} 11. Nxd4 {[%emt 0:00:30]} Nc5 {[%emt 0:00:30]} 12. f3 {[%emt 0:02:30]} a5 {[%emt 0:06:30]} 13. Qd2 {[%emt 0:05:30]} a4 {[%emt 0:02:30]} 14. Rad1 {[%emt 0:00:30]} Qa5 {[%emt 0:00:00]} 15. Nc2 {[%emt 0:14:30]} Be6 {[%emt 0:03:00]} 16. Na3 {[%emt 0:06:30]} Qb4 {[%emt 0:05:30]} 17. Rfe1 {[%emt 0:22:30]} Nfd7 {[%emt 0:04:30]} 18. f4 {[%emt 0:18:30]} Bxc4 {[%emt 0:01:30]} 19. Nxc4 {[%emt 0:01:30]} Qxc4 {[%emt 0:00:30]} 20. Qxd6 {[%emt 0:00:30]} a3 {[%emt 0:00:30]} 21. Bf1 {[%emt 0:05:22]} Qb4 {[%emt 0:00:30]} 22. Nb1 {[%emt 0:01:15]} axb2 {[%emt 0:01:30]} 23. a3 {[%emt 0:00:08]} Qxe4 {[%emt 0:00:30]} 24. Re2 {[%emt 0:16:04]} Qf3 {[%emt 0:01:30]} 25. Bxc5 {[%emt 0:00:20]} Nxc5 {[%emt 0:01:30]} 26. Rg2 {[%emt 0:02:17]} Ne4 {[%emt 0:00:30]} 27. Qd7 {[%emt 0:00:15]} Nf6 {[%emt 0:01:30]} 28. Qd6 {[%emt 0:01:03]} Nd5 {[%emt 0:00:30]} 29. Rd3 {[%emt 0:00:00]} Re3 {[%emt 0:00:00]} 30. Be2 {[%emt 0:00:42]} Qe4 {[%emt 0:00:00]} 31. Nd2 {[%emt 0:00:32]} Rxd3 {[%emt 0:00:30]} 32. Nxe4 {[%emt 0:00:56]} b1=Q+ {[%emt 0:00:00]} 33. Kh2 {[%emt 0:00:00]} Re3 {[%emt 0:00:00]} 34. Ng5 {[%emt 0:00:00]} Rae8 {[%emt 0:00:30]} 35. Bc4 {[%emt 0:00:08]} Re1 {[%emt 0:00:30]} 36. Rf2 {[%emt 0:00:49]} h5 {[%emt 0:02:30]} 37. Bxd5 {[%emt 0:00:30]} cxd5 {[%emt 0:00:30]} 38. Qxd5 {[%emt 0:00:30]} Qf5 {[%emt 0:00:30]} 39. Qxb7 {[%emt 0:00:30]} R1e2 {[%emt 0:00:00]} 40. Rxe2 {[%emt 0:01:00]} Rxe2+ {[%emt 0:00:00]} 41. Kh1 {[%emt 0:00:09]} Re1+ {[%emt 0:00:30]} 42. Kg2 {[%emt 0:00:30]} Qc2+ {[%emt 0:00:00]} 0-1

[Event "World Junior U20 Open 2018"]
[Site "Gebze"]
[Date "2018.09.08"]
[Round "5.69"]
[White "Cirovic, Miroljub"]
[Black "Dedebas, Emre Emin"]
[Result "1-0"]
[ECO "E16"]
[WhiteElo "2181"]
[BlackElo "2334"]
[Annotator "NA"]
[PlyCount "108"]
[EventDate "2018.09.05"]
[EventType "swiss"]
[EventCountry "TUR"]
[SourceTitle "playchess.com"]
[Source "ChessBase"]
[SourceQuality "1"]
[TimeControl "40/5400+30:1800+30"]

1. d4 {[%emt 0:00:30]} Nf6 {[%emt 0:00:30]} 2. c4 {[%emt 0:00:30]} e6 {[%emt 0:00:00]} 3. Nf3 {[%emt 0:00:30]} b6 {[%emt 0:00:00]} 4. g3 {[%emt 0:00:30]} Bb7 {[%emt 0:00:30]} 5. Bg2 {[%emt 0:00:00]} Bb4+ {[%emt 0:00:00]} 6. Bd2 {[%emt 0:01:00]} a5 {[%emt 0:00:30]} 7. O-O {[%emt 0:01:30]} O-O {[%emt 0:00:00]} 8. Nc3 {[%emt 0:01:30]} d6 {[%emt 0:02:30]} 9. Rc1 {[%emt 0:03:30]} Nbd7 {[%emt 0:03:30]} 10. Qc2 {[%emt 0:09:30] E16: Queen's Indian: 4 g3 Bb7 5 Bg2 Bb4+} (10. Bg5 Bxc3 11. Rxc3 h6 12. Bxf6 Nxf6 13. Nd2 Bxg2 14. Kxg2 e5 15. dxe5 dxe5 16. Qc2 Qd7 17. Ne4 Qc6 {½-½ (41) Stupak,K (2564)-Sasikiran,K (2666) Yerevan 2018}) 10... Re8 {[%emt 0:06:30]} 11. Rfd1 {[%emt 0:05:30]} Qc8 $146 {[%emt 0:16:30]} ({Predecessor:} 11... h6 12. Bf4 Bxc3 13. Qxc3 Qe7 14. b3 Ra7 15. Be3 Ng4 16. Bd2 Ngf6 17. Be3 Ng4 18. Bd2 Ngf6 19. Be3 Ng4 {½-½ (19) Simantsev,M (2451)-Balashov,Y (2429) Moscow 2014}) 12. d5 {[%emt 0:16:30]} Nc5 {[%emt 0:31:30]} 13. a3 {[%emt 0:05:30]} Bxc3 {[%emt 0:00:30]} 14. Bxc3 {[%emt 0:00:30]} Nce4 {[%emt 0:01:30]} 15. Bxf6 {[%emt 0:06:30]} Nxf6 {[%emt 0:00:30]} 16. Nd4 {[%emt 0:00:30]} e5 {[%emt 0:02:00]} 17. Nb5 {[%emt 0:01:30]} a4 {[%emt 0:03:30]} 18. Nc3 {[%emt 0:01:30]} Qd7 {[%emt 0:00:30]} 19. e4 {[%emt 0:01:30]} Ra5 {[%emt 0:01:30]} 20. Bf1 {[%emt 0:02:30]} Rea8 {[%emt 0:01:30]} 21. Qd2 {[%emt 0:02:30]} Rc5 {[%emt 0:01:30]} 22. f3 {[%emt 0:00:30]} Qe8 {[%emt 0:04:30] [#]} 23. Nxa4 $16 {[%emt 0:08:30]} Qxa4 24. b4 Qxa3 25. bxc5 Qxf3 26. Bg2 Qb3 27. cxd6 cxd6 28. Qc3 Qxc3 29. Rxc3 Nd7 30. Rb1 Nc5 31. Rcc1 Ra6 32. Ra1 Nb3 33. Rxa6 Bxa6 34. Rb1 Bxc4 35. Bf1 b5 36. Bxc4 bxc4 37. Rb2 f5 38. Rc2 fxe4 39. Rxc4 Nd4 40. Kf2 Nf5 41. Rc6 h5 42. h3 e3+ 43. Ke1 Nxg3 44. Rxd6 Kf7 45. Re6 e4 46. Re5 Kf6 47. d6 Kxe5 48. d7 Kf4 49. d8=Q g5 50. Qd6+ Kf3 51. Qf6+ Kg2 52. Qxg5 Kxh3 53. Qxe3 h4 54. Qg5 e3 {[%emt 2:12:57]} 1-0

[Event "World Junior U20 Open 2018"]
[Site "Gebze"]
[Date "2018.09.08"]
[Round "5.70"]
[White "Urazayev, Arystanbek"]
[Black "Sezdbekov, Ruslan"]
[Result "1-0"]
[ECO "C42"]
[WhiteElo "2333"]
[BlackElo "2160"]
[Annotator "NA"]
[PlyCount "73"]
[EventDate "2018.09.05"]
[EventType "swiss"]
[EventCountry "TUR"]
[SourceTitle "playchess.com"]
[Source "ChessBase"]
[SourceQuality "1"]
[TimeControl "40/5400+30:1800+30"]

1. e4 {[%emt 0:00:30]} e5 {[%emt 0:01:30]} 2. Nf3 {[%emt 0:00:30]} Nf6 {[%emt 0:00:00]} 3. Nxe5 {[%emt 0:00:30]} d6 {[%emt 0:00:00]} 4. Nf3 {[%emt 0:00:30]} Nxe4 {[%emt 0:00:30]} 5. d4 {[%emt 0:00:00]} d5 {[%emt 0:00:00]} 6. Bd3 {[%emt 0:00:00]} Bd6 {[%emt 0:01:00]} 7. O-O {[%emt 0:01:30]} O-O {[%emt 0:00:30]} 8. c4 {[%emt 0:01:30]} c6 {[%emt 0:01:30]} 9. Nc3 {[%emt 0:00:00]} Nxc3 {[%emt 0:00:30]} 10. bxc3 {[%emt 0:00:00]} Bg4 {[%emt 0:01:30]} 11. h3 {[%emt 0:03:30]} Bh5 {[%emt 0:02:30]} 12. Rb1 {[%emt 0:02:30]} dxc4 {[%emt 0:07:30]} 13. Bxc4 {[%emt 0:00:30]} Nd7 {[%emt 0:01:30]} 14. Rxb7 {[%emt 0:08:30]} Nb6 {[%emt 0:01:30]} 15. Ba6 {[%emt 0:03:30]} Re8 {[%emt 0:06:30]} 16. c4 $16 {[%emt 0:05:30]} Bc7 {[%emt 0:02:30]} 17. Ba3 {[%emt 0:10:30]} Re6 {[%emt 0:08:30]} 18. d5 {[%emt 0:08:30]} cxd5 {[%emt 0:10:30]} 19. cxd5 {[%emt 0:01:30]} Rf6 {[%emt 0:06:30]} 20. g4 {[%emt 0:21:30]} Nxd5 {[%emt 0:02:30]} 21. Bc4 {[%emt 0:02:30]} Nb6 {[%emt 0:00:30]} 22. Qxd8+ {[%emt 0:01:30]} Bxd8 {[%emt 0:01:30]} 23. Re1 {[%emt 0:03:30]} h6 {[%emt 0:06:30]} 24. Re8+ {[%emt 0:04:30]} Kh7 {[%emt 0:00:30]} 25. Ne5 {[%emt 0:06:53]} Nxc4 {[%emt 0:01:30]} 26. Nxc4 {[%emt 0:00:07]} Bg6 {[%emt 0:01:30]} 27. Rd7 {[%emt 0:04:58]} Rc6 {[%emt 0:02:30]} 28. Nd6 {[%emt 0:00:45]} Rc3 {[%emt 0:03:30]} 29. Bb4 {[%emt 0:01:17]} Rc1+ {[%emt 0:00:30]} 30. Kg2 {[%emt 0:00:12]} a5 {[%emt 0:03:30]} 31. Bxa5 {[%emt 0:02:42]} Rxa5 {[%emt 0:01:30]} 32. Rdxd8 {[%emt 0:00:05]} Bd3 {[%emt 0:00:30]} 33. Nxf7 {[%emt 0:01:41]} Bf1+ {[%emt 0:00:30]} 34. Kg3 {[%emt 0:00:00]} Rc3+ {[%emt 0:04:30]} 35. f3 {[%emt 0:00:08]} Rcc5 {[%emt 0:05:17]} 36. Rd6 {[%emt 0:02:00]} g5 {[%emt 0:00:34]} 37. Re7 {[%emt 0:00:00]} 1-0

[Event "World Junior U20 Open 2018"]
[Site "Gebze"]
[Date "2018.09.08"]
[Round "5.72"]
[White "Tifferet, Shaked"]
[Black "Ongut, Tamas Gunes"]
[Result "1/2-1/2"]
[ECO "A07"]
[WhiteElo "2299"]
[BlackElo "2121"]
[Annotator "NA"]
[PlyCount "147"]
[EventDate "2018.09.05"]
[EventType "swiss"]
[EventCountry "TUR"]
[SourceTitle "playchess.com"]
[Source "ChessBase"]
[SourceQuality "1"]
[TimeControl "40/5400+30:1800+30"]

1. Nf3 {[%emt 0:00:30]} d5 {[%emt 0:00:30]} 2. g3 {[%emt 0:00:30]} Nc6 {[%emt 0:00:00]} 3. Bg2 {[%emt 0:03:30]} e5 {[%emt 0:00:00]} 4. d3 {[%emt 0:00:00]} f6 {[%emt 0:00:30]} 5. a3 {[%emt 0:01:00]} Be6 {[%emt 0:00:00]} 6. b4 {[%emt 0:00:30]} Qd7 {[%emt 0:03:00]} 7. Nbd2 {[%emt 0:04:30]} g5 {[%emt 0:06:30]} 8. Bb2 {[%emt 0:11:30]} h5 {[%emt 0:06:30]} 9. h4 {[%emt 0:09:30]} g4 {[%emt 0:00:30]} 10. Ng1 {[%emt 0:01:30]} a5 {[%emt 0:07:30]} 11. b5 {[%emt 0:02:30]} Nd8 {[%emt 0:05:30]} 12. e3 {[%emt 0:06:30]} Qxb5 {[%emt 0:05:30]} 13. Rb1 {[%emt 0:00:30]} Qd7 {[%emt 0:00:30]} 14. Ne2 {[%emt 0:01:30]} Nf7 {[%emt 0:01:30]} 15. O-O {[%emt 0:02:30]} Ne7 {[%emt 0:03:30]} 16. c4 {[%emt 0:06:30]} c6 {[%emt 0:05:30]} 17. d4 {[%emt 0:08:30]} dxc4 {[%emt 0:12:30]} 18. Qc2 {[%emt 0:03:30]} Bg7 {[%emt 0:01:30]} 19. dxe5 {[%emt 0:03:30]} fxe5 {[%emt 0:05:30]} 20. Nxc4 {[%emt 0:03:30]} Qc7 {[%emt 0:08:30]} 21. a4 {[%emt 0:01:30]} O-O {[%emt 0:02:30]} 22. Ba3 {[%emt 0:01:30]} Rfe8 {[%emt 0:02:30]} 23. Bc5 {[%emt 0:01:30]} Nd5 {[%emt 0:01:30]} 24. Rfc1 {[%emt 0:04:30]} Nf6 {[%emt 0:01:13]} 25. Bb6 {[%emt 0:02:50]} Qc8 {[%emt 0:00:04]} 26. Nxa5 {[%emt 0:02:20]} Bf5 {[%emt 0:00:13]} 27. e4 {[%emt 0:00:02]} Bg6 {[%emt 0:00:30]} 28. Nc4 {[%emt 0:00:32]} Bh6 {[%emt 0:02:01]} 29. Rd1 {[%emt 0:03:44]} Qe6 {[%emt 0:03:09]} 30. a5 Nd7 31. Nc1 Nxb6 32. Rxb6 Qe7 33. Nd3 Bg7 34. Qb3 Ra7 35. Rb1 Rd8 36. Nb4 Qc7 37. a6 Bf8 38. axb7 Rxb7 39. Rxb7 Qxb7 40. Nxe5 Qxb4 {[%emt 1:19:00]} 41. Qxb4 {[%emt 1:56:30]} Bxb4 {[%emt 0:30:30]} 42. Nxg6 {[%emt 0:01:30]} Bd6 {[%emt 0:06:30]} 43. Rc1 {[%emt 0:03:30]} c5 {[%emt 0:02:30]} 44. Nf4 {[%emt 0:02:11]} Ne5 {[%emt 0:00:30]} 45. Nxh5 {[%emt 0:00:30]} Nd3 {[%emt 0:00:30]} 46. Rc2 {[%emt 0:05:27]} Be5 {[%emt 0:00:30]} 47. Bf1 {[%emt 0:00:30]} Ne1 {[%emt 0:00:30]} 48. Rc1 {[%emt 0:03:07]} Nf3+ {[%emt 0:00:30]} 49. Kg2 {[%emt 0:04:17]} Rd2 {[%emt 0:00:30]} 50. Bc4+ {[%emt 0:00:30]} Kh7 {[%emt 0:00:30]} 51. Be6 {[%emt 0:01:03]} Bd4 {[%emt 0:02:30]} 52. Rf1 {[%emt 0:00:05]} Kh6 {[%emt 0:02:38]} 53. Bxg4 {[%emt 0:02:33]} Ne5 {[%emt 0:00:03]} 54. Kh3 {[%emt 0:00:45]} Nd3 {[%emt 0:02:36]} 55. Kg2 {[%emt 0:02:41]} (55. e5 $11 Nxf2+ 56. Rxf2 Rxf2 57. e6) 55... Nxf2 {[%emt 0:00:30]} 56. Kf3 {[%emt 0:00:11]} Nd3 {[%emt 0:01:53]} 57. e5 {[%emt 0:01:20]} Nxe5+ {[%emt 0:01:03]} 58. Kf4 {[%emt 0:00:14]} Bb2 {[%emt 0:02:19]} 59. Nf6 {[%emt 0:01:06]} Rd4+ {[%emt 0:00:30]} 60. Kf5 {[%emt 0:00:30]} Nc4 {[%emt 0:03:09]} 61. Re1 {[%emt 0:00:32]} Rd6 {[%emt 0:00:10]} 62. Re6 {[%emt 0:01:21]} Rxe6 {[%emt 0:07:31]} 63. Kxe6 {[%emt 0:00:08]} Bxf6 {[%emt 0:01:41]} 64. Kxf6 {[%emt 0:00:01]} Ne3 {[%emt 0:00:01]} 65. Be2 {[%emt 0:01:12]} Ng2 {[%emt 0:01:35]} 66. h5 {[%emt 0:01:01]} Ne3 {[%emt 0:00:05]} 67. Ke5 $11 {[%emt 0:00:32]} Kg5 {[%emt 0:00:10]} 68. g4 {[%emt 0:00:09]} c4 {[%emt 0:01:10]} 69. Kd4 {[%emt 0:00:43]} Nxg4 {[%emt 0:00:41]} 70. Bxg4 {[%emt 0:00:02]} c3 {[%emt 0:00:00]} 71. Kxc3 {[%emt 0:00:00]} Kh6 {[%emt 0:00:00]} 72. Kd4 {[%emt 0:00:15]} Kg7 {[%emt 0:00:21]} 73. Ke5 {[%emt 0:00:00]} Kh8 {[%emt 0:00:05]} 74. Ke4 {[%emt 0:00:06]} 1/2-1/2

[Event "World Junior U20 Open 2018"]
[Site "Gebze"]
[Date "2018.09.08"]
[Round "5.73"]
[White "Cansun, Can Alp"]
[Black "Cadilhac, Igor Tokuichi Kikuc"]
[Result "0-1"]
[ECO "B34"]
[WhiteElo "2110"]
[BlackElo "2286"]
[Annotator "ChessBase"]
[PlyCount "96"]
[EventDate "2018.09.05"]
[EventType "swiss"]
[EventCountry "TUR"]
[SourceTitle "playchess.com"]
[Source "ChessBase"]
[SourceQuality "1"]
[TimeControl "40/5400+30:1800+30"]

1. e4 {[%emt 0:00:30]} c5 {[%emt 0:00:30]} 2. Nf3 {[%emt 0:00:00]} g6 {[%emt 0:00:30]} 3. d4 {[%emt 0:00:00]} cxd4 {[%emt 0:00:00]} 4. Nxd4 {[%emt 0:00:00]} Nc6 {[%emt 0:00:00]} 5. Nc3 {[%emt 0:00:00]} Bg7 {[%emt 0:00:00]} 6. Be3 {[%emt 0:00:30]} Nf6 {[%emt 0:00:00]} 7. Nxc6 {[%emt 0:00:30]} bxc6 {[%emt 0:00:30]} 8. e5 {[%emt 0:00:00]} Ng8 {[%emt 0:00:30]} 9. Bd4 {[%emt 0:00:00]} Qc7 {[%emt 0:00:30]} 10. e6 {[%emt 0:00:30]} Nf6 {[%emt 0:01:30]} 11. exd7+ {[%emt 0:01:30]} Bxd7 {[%emt 0:00:30]} 12. Be2 {[%emt 0:05:30]} O-O {[%emt 0:01:30]} 13. O-O {[%emt 0:09:30]} Rfd8 {[%emt 0:00:30]} 14. Bc5 {[%emt 0:09:30]} Bf5 {[%emt 0:10:30]} 15. Qc1 {[%emt 0:00:30]} Nd5 {[%emt 0:11:30]} 16. Bf3 {[%emt 0:30:30]} Nxc3 {[%emt 0:09:30]} 17. bxc3 {[%emt 0:00:00]} Bxc3 {[%emt 0:03:30]} 18. Rb1 {[%emt 0:00:00]} Rd2 {[%emt 0:00:30]} 19. Qa3 {[%emt 0:01:30]} Be5 {[%emt 0:03:30]} 20. h3 {[%emt 0:16:30]} Rxc2 {[%emt 0:01:30]} 21. Bxe7 {[%emt 0:01:30]} Rc3 {[%emt 0:01:30]} 22. Rb3 {[%emt 0:00:00]} Rc2 {[%emt 0:05:30]} 23. Bd1 {[%emt 0:05:01]} Rd2 {[%emt 0:02:30]} 24. Bb4 {[%emt 0:05:06]} Bh2+ {[%emt 0:01:30]} 25. Kh1 {[%emt 0:00:30]} Bd6 {[%emt 0:00:00]} 26. Bf3 {[%emt 0:04:02]} Bxb4 {[%emt 0:04:00]} 27. Rxb4 {[%emt 0:00:28]} Re8 {[%emt 0:02:30]} 28. Rb2 {[%emt 0:05:07]} Rxb2 {[%emt 0:13:30]} 29. Qxb2 {[%emt 0:01:20]} c5 {[%emt 0:00:30]} 30. Rc1 {[%emt 0:00:25]} Be6 {[%emt 0:00:30]} 31. Qb5 {[%emt 0:01:27]} Rc8 {[%emt 0:00:00]} 32. a4 {[%emt 0:01:50]} c4 {[%emt 0:00:00]} 33. Rc3 {[%emt 0:01:50]} Rb8 {[%emt 0:01:30]} 34. Qg5 {[%emt 0:00:46]} Rb1+ {[%emt 0:01:30]} 35. Rc1 {[%emt 0:00:02]} Rxc1+ {[%emt 0:00:00]} 36. Qxc1 {[%emt 0:00:30]} c3 {[%emt 0:00:00]} 37. Be4 {[%emt 0:00:00]} Bb3 {[%emt 0:00:30]} 38. Bc2 {[%emt 0:01:15]} Bxc2 {[%emt 0:01:30]} 39. Qxc2 {[%emt 0:00:01]} Qc4 {[%emt 0:00:00]} 40. Kg1 {[%emt 0:00:00]} h5 {[%emt 0:00:00]} 41. g3 {[%emt 0:04:20]} Kh7 {[%emt 0:09:30]} 42. Kg2 {[%emt 0:01:30]} Qb4 {[%emt 0:02:30]} 43. Qa2 {[%emt 0:00:30]} Qe4+ {[%emt 0:00:30]} 44. f3 {[%emt 0:01:30]} Qe6 {[%emt 0:00:30]} 45. Qc2 {[%emt 0:00:30]} Qe3 {[%emt 0:00:30]} 46. Qb3 {[%emt 0:00:30]} Kg7 {[%emt 0:00:30]} 47. h4 {[%emt 0:00:00]} Qe2+ {[%emt 0:00:30]} 48. Kh3 {[%emt 0:01:00]} Qe6+ {[%emt 0:00:30]} 0-1

[Event "World Junior U20 Open 2018"]
[Site "Gebze"]
[Date "2018.09.08"]
[Round "5.74"]
[White "Lin, Peisen"]
[Black "Akdogan, Alperen"]
[Result "1-0"]
[ECO "B04"]
[WhiteElo "2034"]
[BlackElo "2278"]
[Annotator "NA"]
[PlyCount "97"]
[EventDate "2018.09.05"]
[EventType "swiss"]
[EventCountry "TUR"]
[SourceTitle "playchess.com"]
[Source "ChessBase"]
[SourceQuality "1"]
[TimeControl "40/5400+30:1800+30"]

1. e4 {[%emt 0:00:30]} Nf6 {[%emt 0:00:30]} 2. e5 {[%emt 0:00:00]} Nd5 {[%emt 0:00:30]} 3. d4 {[%emt 0:00:00]} d6 {[%emt 0:00:30]} 4. Nf3 {[%emt 0:00:00]} g6 {[%emt 0:00:00]} 5. Bc4 {[%emt 0:00:00]} Nb6 {[%emt 0:00:00]} 6. Bb3 {[%emt 0:00:30]} Bg7 {[%emt 0:00:00]} 7. a4 {[%emt 0:00:30]} a5 {[%emt 0:00:00]} 8. O-O {[%emt 0:01:00]} O-O {[%emt 0:00:30]} 9. h3 {[%emt 0:00:30]} Na6 {[%emt 0:07:30] B04: Alekhine's Defence: 4 Nf3} (9... dxe5 10. Nxe5 N8d7 11. Nxd7 Bxd7 12. Re1 e6 13. c3 Bc6 14. Nd2 Re8 15. Nf3 Bxf3 16. Qxf3 c6 17. Bf4 {½-½ (37) Kasparov,S (2470)-Berkes,F (2640) Paracin 2016}) 10. Be3 {[%emt 0:05:00]} c6 {[%emt 0:07:30]} 11. Nc3 {[%emt 0:02:30]} d5 {[%emt 0:07:30]} 12. Qe2 $146 {[%emt 0:01:30]} ({Predecessor:} 12. Qd2 Nc7 13. Bh6 Ne6 14. Rad1 f5 15. exf6 exf6 16. Rfe1 Qd6 17. Ne2 {½-½ (48) Lendwai,R (2410)-Roehrl,K (2255) Austria 1992}) 12... Nb4 {[%emt 0:01:30]} 13. Rad1 {[%emt 0:05:30]} Kh8 {[%emt 0:06:30]} 14. Nh2 {[%emt 0:06:30]} Be6 {[%emt 0:06:30]} 15. Nb1 {[%emt 0:05:30]} Nc4 {[%emt 0:02:30]} 16. c3 {[%emt 0:01:30]} Nxe3 {[%emt 0:04:30]} 17. Qxe3 {[%emt 0:00:30]} Na6 {[%emt 0:00:30]} 18. Rd2 {[%emt 0:09:30]} Qb6 {[%emt 0:16:30]} 19. Bc2 {[%emt 0:01:30]} c5 {[%emt 0:01:30]} 20. f4 {[%emt 0:00:30]} Rac8 {[%emt 0:03:30]} 21. Nf3 {[%emt 0:03:30]} f6 {[%emt 0:16:30]} 22. g4 {[%emt 0:07:30]} cxd4 {[%emt 0:00:30]} 23. cxd4 {[%emt 0:00:30]} Nb4 {[%emt 0:08:54]} 24. Bd1 {[%emt 0:01:00]} Bg8 {[%emt 0:07:03]} 25. Nc3 {[%emt 0:01:30]} fxe5 {[%emt 0:01:38]} 26. fxe5 {[%emt 0:00:30]} Nc6 {[%emt 0:02:56]} 27. Nb5 {[%emt 0:05:30]} Nd8 {[%emt 0:02:20]} 28. Bb3 {[%emt 0:02:30]} Nc6 {[%emt 0:01:23]} 29. Bc2 {[%emt 0:04:30]} Nb4 {[%emt 0:00:52]} 30. Bb1 {[%emt 0:01:30]} Rf7 $11 {[%emt 0:01:14]} 31. Rdf2 Rcf8 32. Kg2 Rf4 33. Kg3 R4f7 34. h4 Na6 35. Rh1 Nc7 36. Nxc7 Qxc7 37. h5 gxh5 38. Rxh5 Qc4 39. b3 Qb4 40. Qd3 h6 41. g5 {[%emt 1:44:30]} Qb6 {[%emt 2:06:28]} 42. Qg6 {[%emt 0:10:30]} Qxb3 {[%emt 0:00:47]} 43. Bd3 {[%emt 0:02:30]} Qd1 {[%emt 0:04:40]} 44. Kg2 {[%emt 0:02:30]} Rc8 {[%emt 0:09:23]} 45. e6 {[%emt 0:03:52]} Rc6 {[%emt 0:00:30]} 46. Rxh6+ {[%emt 0:00:28]} Bxh6 {[%emt 0:00:30]} 47. Qxh6+ Rh7 {[%emt 0:00:02]} 48. Bxh7 {[%emt 0:00:19]} Bxh7 {[%emt 0:00:57]} 49. g6 {[%emt 0:00:07]} 1-0

[Event "World Junior U20 Open 2018"]
[Site "Gebze"]
[Date "2018.09.08"]
[Round "5.75"]
[White "Beukema, Christiaan"]
[Black "Kara, Yanki"]
[Result "0-1"]
[ECO "B06"]
[WhiteElo "1904"]
[BlackElo "2262"]
[Annotator "NA"]
[PlyCount "64"]
[EventDate "2018.09.05"]
[EventType "swiss"]
[EventCountry "TUR"]
[SourceTitle "playchess.com"]
[Source "ChessBase"]
[SourceQuality "1"]
[TimeControl "40/5400+30:1800+30"]

1. e4 {[%emt 0:05:30]} g6 {[%emt 0:00:30]} 2. d4 {[%emt 0:00:30]} Bg7 {[%emt 0:00:00]} 3. Nc3 {[%emt 0:00:30]} d6 {[%emt 0:00:00]} 4. Nf3 {[%emt 0:01:30]} a6 {[%emt 0:00:00]} 5. a4 {[%emt 0:04:30]} b6 {[%emt 0:00:00]} 6. Bc4 {[%emt 0:01:30]} e6 {[%emt 0:00:30]} 7. O-O {[%emt 0:00:30]} Nd7 {[%emt 0:00:30]} 8. Re1 {[%emt 0:03:30]} h6 {[%emt 0:00:30]} 9. Bf4 {[%emt 0:02:30]} Ne7 {[%emt 0:01:30]} 10. Qd2 {[%emt 0:00:30]} Bb7 {[%emt 0:00:30]} 11. d5 {[%emt 0:04:30]} e5 {[%emt 0:00:00]} 12. Be3 {[%emt 0:01:30]} f5 {[%emt 0:06:00]} 13. exf5 {[%emt 0:01:30]} gxf5 {[%emt 0:00:30]} 14. Qe2 {[%emt 0:00:30]} Ng6 {[%emt 0:03:30]} 15. Nd2 {[%emt 0:03:30]} Nf6 {[%emt 0:14:30]} 16. f4 {[%emt 0:02:30]} e4 {[%emt 0:02:30]} 17. Nb3 {[%emt 0:02:30]} Bc8 {[%emt 0:08:30]} 18. Nd4 {[%emt 0:01:30]} Ng4 {[%emt 0:01:30]} 19. Rad1 {[%emt 0:03:30]} Bxd4 {[%emt 0:09:30]} 20. Bxd4 {[%emt 0:03:30]} O-O {[%emt 0:03:30]} 21. g3 {[%emt 0:01:30]} Kh7 {[%emt 0:02:30]} 22. Qg2 {[%emt 0:02:30]} Rg8 {[%emt 0:01:30]} 23. Nxe4 {[%emt 0:08:30]} fxe4 {[%emt 0:01:30]} 24. Qxe4 {[%emt 0:00:30]} Nf6 {[%emt 0:02:30]} 25. Bxf6 {[%emt 0:02:30]} Qxf6 {[%emt 0:00:30]} 26. Bd3 {[%emt 0:00:30]} Bg4 {[%emt 0:03:30]} 27. f5 {[%emt 0:04:30]} Ne5 {[%emt 0:00:30]} 28. Be2 {[%emt 0:00:30]} Qxf5 {[%emt 0:03:30]} 29. Bxg4 {[%emt 0:01:30]} Qxe4 {[%emt 0:00:00]} 30. Rxe4 {[%emt 0:00:30]} Rxg4 {[%emt 0:00:00]} 31. Rxg4 {[%emt 0:01:30]} Nxg4 {[%emt 0:00:00]} 32. Rd4 {[%emt 0:00:30]} Ne5 {[%emt 0:00:00]} 0-1